bitfinex/quotes_SOLUSD_20251126
["timestamp","ask_amount","ask_price","bid_price","bid_amount"]
[1764124132978,3.87348933,139.81,139.79,3.87]
[1764124133179,3.87348933,139.8,139.77,0.71]
[1764124133382,3.87348933,139.78,139.76,0.1]
[1764124133563,3.87348933,139.77,139.76,0.1]
[1764124133759,3.87348933,139.77,139.76,16.408864]
[1764124133959,3.87348933,139.77,139.76,0.82]
[1764124134678,3.87348933,139.78,139.76,0.82]
[1764124136671,3.87348933,139.78,139.76,0.1]
[1764124137988,3.87348933,139.77,139.76,0.82]
[1764124138367,3.87348933,139.78,139.76,0.82]
[1764124140472,4.56348933,139.78,139.76,0.1]
[1764124140669,3.87348933,139.81,139.77,8.80994492]
[1764124140981,106.87348933,139.82,139.8,16.308864]
[1764124141367,3.87348933,139.81,139.8,16.308864]
[1764124141770,4.58348933,139.81,139.79,3.16]
[1764124141983,3.87348933,139.8,139.79,19.468864]
[1764124142267,4.58348933,139.81,139.79,19.468864]
[1764124143176,107.58348933,139.82,139.79,27.34242496]
[1764124144885,103.0,139.82,139.79,27.34242496]
[1764124145192,106.87348933,139.82,139.79,27.34242496]
[1764124145693,107.58348933,139.82,139.79,27.34242496]
[1764124146393,4.58348933,139.81,139.79,19.468864]
[1764124146773,3.87348933,139.81,139.79,20.188864]
[1764124147281,107.58348933,139.82,139.79,27.34236119]
[1764124150295,107.58348933,139.82,139.79,26.62236119]
[1764124150498,114.73560219,139.82,139.79,19.468864]
[1764124153380,107.58348933,139.82,139.79,19.468864]
[1764124155090,114.73556246,139.82,139.79,19.468864]
[1764124155670,114.73556246,139.82,139.79,20.188864]
[1764124156095,110.86207313,139.82,139.79,20.188864]
[1764124156399,114.73556246,139.82,139.79,19.468864]
[1764124156596,0.71,139.81,139.8,16.308864]
[1764124157094,4.58348933,139.81,139.79,3.16]
[1764124157391,0.71,139.81,139.79,3.16]
[1764124157693,0.71,139.8,139.79,3.16]
[1764124161791,3.18979464,139.81,139.79,3.16]
[1764124161983,0.71,139.8,139.79,3.16]
[1764124168209,3.18979464,139.8,139.79,3.16]
[1764124168405,3.18979464,139.8,139.78,3.16]
[1764124168620,0.68,139.79,139.78,3.16]
[1764124170704,0.68,139.79,139.78,26.62296329]
[1764124176215,0.68,139.79,139.78,19.468864]
[1764124176828,3.15979464,139.79,139.78,19.468864]
[1764124177430,3.15979464,139.79,139.78,3.16]
[1764124177915,0.68,139.79,139.78,19.468864]
[1764124184223,3.15979464,139.79,139.78,19.468864]
[1764124184521,0.68,139.8,139.78,19.468864]
[1764124184724,0.68,139.79,139.78,19.468864]
[1764124185325,0.68,139.79,139.78,3.16]
[1764124190931,103.0,139.82,139.78,10.31409929]
[1764124191117,0.68,139.8,139.78,26.62296329]
[1764124192030,3.15979464,139.8,139.78,26.62296329]
[1764124195310,0.68,139.8,139.78,26.62296329]
[1764124198335,0.68,139.8,139.78,19.468864]
[1764124198537,2.47979464,139.79,139.76,0.1]
[1764124198715,2.47979464,139.77,139.76,0.1]
[1764124199117,3.19979464,139.77,139.76,0.1]
[1764124199409,13.61440578,139.77,139.76,0.1]
[1764124199849,3.98,139.77,139.76,0.1]
[1764124200014,6.45979464,139.77,139.76,0.1]
[1764124200616,13.61440578,139.77,139.76,0.1]
[1764124201339,13.61440578,139.77,139.75,0.1]
[1764124201518,3.16979464,139.76,139.75,0.1]
[1764124201716,6.32979464,139.76,139.75,0.1]
[1764124202035,9.19789774,139.76,139.75,0.1]
[1764124202413,16.3530208,139.76,139.75,0.1]
[1764124203035,5.34789774,139.76,139.75,0.1]
[1764124203233,2.8681031,139.76,139.75,0.1]
[1764124203943,6.03789774,139.76,139.75,0.1]
[1764124204746,13.1930208,139.76,139.75,0.1]
[1764124207238,10.71322616,139.76,139.75,0.1]
[1764124211565,3.5581031,139.76,139.75,0.1]
[1764124212173,10.71322616,139.76,139.75,0.1]
[1764124213976,13.1930208,139.76,139.75,0.1]
[1764124220572,14.59203862,139.76,139.75,0.1]
[1764124229885,17.75203862,139.76,139.75,0.1]
[1764124230468,14.59203862,139.76,139.75,0.1]
[1764124230687,17.75203862,139.76,139.75,0.1]
[1764124230871,14.59203862,139.76,139.75,0.1]
[1764124231195,17.75203862,139.76,139.75,0.1]
[1764124231558,14.59203862,139.76,139.75,0.1]
[1764124231971,17.75203862,139.76,139.75,0.1]
[1764124232374,14.59203862,139.76,139.75,0.1]
[1764124232576,17.75203862,139.76,139.75,0.1]
[1764124232787,34.06090262,139.76,139.75,0.1]
[1764124236383,34.06090262,139.76,139.75,1e-08]
[1764124236568,34.06090262,139.76,139.74,0.1]
[1764124236774,4.55881246,139.75,139.74,0.1]
[1764124237169,14.58296198,139.75,139.74,0.1]
[1764124243403,14.58296198,139.75,139.74,1e-08]
[1764124243700,14.58296198,139.75,139.72,0.1]
[1764124243902,3.87881246,139.73,139.72,0.1]
[1764124244282,20.86767646,139.73,139.72,0.1]
[1764124244590,28.02433573,139.73,139.72,0.1]
[1764124249493,27.34433573,139.73,139.72,0.75]
[1764124251298,23.46552327,139.73,139.72,0.75]
[1764124251500,27.34433573,139.73,139.72,0.75]
[1764124257401,27.34433573,139.73,139.72,0.1]
[1764124258296,28.05433573,139.73,139.72,0.1]
[1764124258997,11.03547173,139.73,139.72,0.1]
[1764124259906,11.74547173,139.73,139.72,0.1]
[1764124260278,11.03547173,139.73,139.72,0.1]
[1764124262107,11.73547173,139.73,139.72,0.1]
[1764124262319,32.54933024,139.73,139.72,0.1]
[1764124262602,28.67051778,139.73,139.72,0.81]
[1764124262801,7.15631501,139.74,139.72,0.81]
[1764124263025,7.75762492,139.73,139.72,0.1]
[1764124263307,3.87881246,139.73,139.72,0.1]
[1764124264280,11.03547173,139.73,139.72,0.1]
[1764124265208,11.73547173,139.73,139.72,0.1]
[1764124265589,11.03547173,139.73,139.72,0.1]
[1764124268017,11.73547173,139.73,139.72,0.1]
[1764124268481,11.03547173,139.73,139.72,0.1]
[1764124269079,11.73547173,139.73,139.72,0.1]
[1764124270090,18.77428419,139.73,139.72,0.1]
[1764124270297,40.28968563,139.73,139.72,0.1]
[1764124271509,36.41087317,139.73,139.72,0.1]
[1764124271896,40.28968563,139.73,139.72,0.1]
[1764124273896,110.27349415,139.73,139.65,0.81]
[1764124274098,3.87881246,139.66,139.65,0.81]
[1764124275998,11.03905877,139.66,139.65,0.81]
[1764124276195,11.73905877,139.66,139.65,0.1]
[1764124277503,11.03905877,139.66,139.65,0.1]
[1764124277899,11.03905877,139.66,139.65,0.81]
[1764124278100,11.03905877,139.66,139.65,0.1]
[1764124278299,11.73905877,139.66,139.65,0.1]
[1764124279599,14.89905877,139.66,139.65,0.1]
[1764124281130,14.19905877,139.66,139.65,0.81]
[1764124281311,17.06921985,139.66,139.65,0.81]
[1764124281628,17.06921985,139.66,139.65,0.1]
[1764124282198,17.76921985,139.66,139.65,0.1]
[1764124282622,16.37632241,139.66,139.65,0.1]
[1764124289918,18.86223743,139.66,139.65,0.1]
[1764124290441,26.31998249,139.66,139.64,0.1]
[1764124290610,13.1495751,139.65,139.62,0.1]
[1764124290814,2.48591502,139.63,139.62,0.81]
[1764124292411,9.64769973,139.63,139.62,0.81]
[1764124294039,9.64769973,139.63,139.62,0.1]
[1764124294220,16.81148886,139.63,139.62,0.1]
[1764124294609,16.81148886,139.63,139.62,0.81]
[1764124298522,16.81148886,139.63,139.62,0.1]
[1764124299947,2.48591502,139.61,139.57,7.16450899]
[1764124300455,14.32557384,139.63,139.57,7.16450899]
[1764124301245,2.48591502,139.6,139.57,7.16450899]
[1764124302723,9.64927349,139.6,139.55,19.778864]
[1764124302931,2.48591502,139.59,139.55,26.94459206]
[1764124304222,9.64976711,139.59,139.55,26.94459206]
[1764124308053,9.64927569,139.6,139.56,0.31]
[1764124308350,2.48591502,139.59,139.55,26.94459206]
[1764124308654,2.48591502,139.56,139.51,0.1]
[1764124308822,2.48591502,139.52,139.51,0.1]
[1764124309549,10.95638558,139.52,139.51,0.1]
[1764124309925,18.84381677,139.52,139.51,0.1]
[1764124310218,49.86605483,139.52,139.4,0.41]
[1764124310432,49.86605483,139.52,139.41,6.05591502]
[1764124310433,10.66366008,139.51,139.41,6.05591502]
[1764124310639,2.48591502,139.47,139.43,8.80994492]
[1764124310840,2.48591502,139.49,139.43,11.29585994]
[1764124311019,2.48591502,139.48,139.44,0.41]
[1764124311622,2.48591502,139.48,139.44,7.58139915]
[1764124312042,2.48591502,139.48,139.45,0.41]
[1764124312253,7.16896952,139.5,139.45,0.41]
[1764124312425,0.72,139.49,139.44,7.58139915]
[1764124313025,7.16896952,139.5,139.45,0.41]
[1764124313257,7.88896952,139.5,139.45,0.41]
[1764124313455,2.48591502,139.49,139.45,3.57]
[1764124313628,103.67,139.55,139.47,11.29585994]
[1764124313948,2.48591502,139.5,139.48,0.41]
[1764124315145,2.48591502,139.52,139.48,0.41]
[1764124315642,2.48591502,139.51,139.48,7.57937721]
[1764124316748,2.48591502,139.53,139.49,12.37994492]
[1764124316955,2.48591502,139.54,139.49,14.86585994]
[1764124317140,2.48591502,139.54,139.5,0.41]
[1764124317326,103.0,139.55,139.5,0.41]
[1764124317658,2.48591502,139.54,139.5,7.57821284]
[1764124317854,2.48591502,139.53,139.5,7.57821284]
[1764124318356,110.83595175,139.55,139.5,7.57821284]
[1764124318658,2.48591502,139.53,139.5,7.57821284]
[1764124320735,2.48591502,139.53,139.5,7.16821284]
[1764124321034,2.48591502,139.53,139.51,0.41]
[1764124321231,30.98965723,139.61,139.51,0.41]
[1764124321232,10.14366008,139.65,139.52,30.76472394]
[1764124321431,10.14366008,139.65,139.55,7.16589036]
[1764124321432,7.16291318,139.61,139.55,7.16589036]
[1764124321659,2.48591502,139.59,139.56,3.16]
[1764124321864,2.48591502,139.58,139.56,3.57]
[1764124322060,2.48591502,139.59,139.57,0.41]
[1764124322554,2.48591502,139.6,139.57,0.41]
[1764124323835,2.48591502,139.6,139.57,7.57469889]
[1764124324362,2.48591502,139.6,139.58,0.41]
[1764124326162,2.48591502,139.59,139.58,0.41]
[1764124326375,2.48591502,139.6,139.58,0.41]
[1764124326573,1.80395727,139.63,139.58,0.41]
[1764124326574,1.80395727,139.63,139.59,11.96994492]
[1764124326870,2.48591502,139.61,139.59,3.16]
[1764124327368,2.48591502,139.61,139.59,3.57]
[1764124327872,2.48591502,139.61,139.59,3.16]
[1764124328066,2.48591502,139.6,139.59,3.16]
[1764124328359,2.48591502,139.6,139.59,3.57]
[1764124329069,2.48591502,139.61,139.59,3.57]
[1764124330755,2.48591502,139.61,139.59,10.32383139]
[1764124330955,2.48591502,139.61,139.59,10.73383139]
[1764124331341,1.80395727,139.63,139.59,10.32383139]
[1764124331545,4.28987229,139.63,139.6,0.41]
[1764124332457,1.80395727,139.63,139.59,10.32366745]
[1764124332657,2.48591502,139.62,139.6,0.41]
[1764124332865,1.80395727,139.63,139.6,0.41]
[1764124333171,4.28987229,139.63,139.6,0.41]
[1764124333373,4.28987229,139.63,139.6,7.57285384]
[1764124333541,2.48591502,139.61,139.59,3.16]
[1764124333741,2.48591502,139.6,139.59,3.16]
[1764124334281,0.71,139.62,139.59,10.3237884]
[1764124334580,2.48591502,139.62,139.6,0.41]
[1764124334757,4.28987229,139.63,139.6,0.41]
[1764124335080,1.80395727,139.63,139.6,0.41]
[1764124335448,1.80395727,139.63,139.61,7.16281068]
[1764124335671,1.80395727,139.63,139.62,3.16]
[1764124335972,1.80395727,139.63,139.62,3.57]
[1764124336554,1.80395727,139.63,139.62,10.73229766]
[1764124339177,1.80395727,139.63,139.62,10.32229766]
[1764124339374,1.80395727,139.63,139.62,10.23229766]
[1764124341874,1.80395727,139.63,139.62,9.82229766]
[1764124342789,5.68810275,139.63,139.62,9.82229766]
[1764124343300,1.80395727,139.63,139.62,9.82229766]
[1764124345295,5.68810275,139.63,139.62,2.66]
[1764124345479,1.80395727,139.63,139.62,9.82229766]
[1764124345684,5.68810275,139.63,139.62,9.82229766]
[1764124346288,1.39395727,139.63,139.62,39.23525206]
[1764124346489,1.39395727,139.63,139.62,35.35110658]
[1764124346670,0.2,139.65,139.64,25.11880892]
[1764124346866,0.2,139.65,139.64,29.0029544]
[1764124347395,0.2,139.65,139.64,36.16422624]
[1764124348589,0.2,139.65,139.64,32.28008076]
[1764124349102,103.0,139.71,139.64,89.87376504]
[1764124349273,4.58414548,139.7,139.67,7.15973365]
[1764124349585,3.88414548,139.7,139.68,3.16]
[1764124349773,3.88414548,139.71,139.68,3.16]
[1764124350199,4.58414548,139.71,139.68,3.16]
[1764124350597,0.7,139.71,139.68,3.16]
[1764124351173,4.58414548,139.71,139.68,3.16]
[1764124351901,0.7,139.71,139.68,3.16]
[1764124352085,0.7,139.71,139.68,10.31922092]
[1764124352280,4.58414548,139.71,139.68,10.31922092]
[1764124352479,0.7,139.71,139.68,10.31922092]
[1764124353400,4.58414548,139.71,139.68,10.31922092]
[1764124354103,7.15614713,139.74,139.68,10.31922092]
[1764124354323,7.15614713,139.74,139.62,0.71622976]
[1764124354324,16.308864,139.71,139.62,0.71622976]
[1764124354483,3.88414548,139.63,139.52,11.05157667]
[1764124354802,3.88414548,139.55,139.51,7.16780589]
[1764124354983,3.88414548,139.55,139.52,19.468864]
[1764124355184,3.88414548,139.58,139.48,21.80746008]
[1764124355185,3.88414548,139.54,139.48,21.80746008]
[1764124355485,0.7,139.54,139.52,16.308864]
[1764124355720,3.88414548,139.54,139.52,19.468864]
[1764124356584,10.31958394,139.54,139.52,19.468864]
[1764124359604,0.7,139.55,139.52,19.468864]
[1764124359785,10.31958394,139.54,139.52,19.468864]
[1764124360802,11.01958394,139.54,139.52,19.468864]
[1764124363512,10.31958394,139.53,139.52,19.468864]
[1764124364209,0.7,139.54,139.52,26.63629519]
[1764124364509,10.31958394,139.53,139.52,26.63629519]
[1764124366016,10.31958394,139.53,139.52,26.63629519]
[1764124366390,11.01958394,139.54,139.52,19.468864]
[1764124366808,11.01958394,139.53,139.48,7.16932113]
[1764124367083,10.31958394,139.51,139.49,3.16]
[1764124367497,11.01958394,139.5,139.49,3.16]
[1764124367692,11.01958394,139.51,139.49,3.16]
[1764124367929,10.31958394,139.54,139.49,3.16]
[1764124368103,0.7,139.53,139.49,3.16]
[1764124368300,11.01958394,139.53,139.49,3.16]
[1764124368496,11.01958394,139.53,139.5,7.16845878]
[1764124368907,10.31958394,139.51,139.48,16.308864]
[1764124369093,0.7,139.52,139.45,3.18]
[1764124369292,10.31958394,139.49,139.45,3.18]
[1764124369512,10.31958394,139.49,139.46,16.308864]
[1764124369722,11.01958394,139.49,139.46,16.308864]
[1764124370816,11.01958394,139.49,139.46,23.47910204]
[1764124373401,103.0,139.54,139.46,41.40538914]
[1764124373601,11.01958394,139.51,139.46,41.40538914]
[1764124374110,11.01958394,139.5,139.47,3.18]
[1764124374493,10.31958394,139.49,139.47,3.18]
[1764124374708,11.01958394,139.49,139.47,3.18]
[1764124376310,17.48804614,139.5,139.47,3.18]
[1764124376512,0.7,139.49,139.47,3.18]
[1764124378725,11.06007008,139.51,139.47,10.34981655]
[1764124378726,0.7,139.51,139.47,10.34981655]
[1764124379606,4.59194942,139.51,139.47,10.34981655]
[1764124380116,0.7,139.5,139.47,10.34981655]
[1764124383534,4.58194942,139.53,139.48,8.80994492]
[1764124383912,3.89194942,139.53,139.48,8.80994492]
[1764124384114,0.69,139.52,139.48,8.80994492]
[1764124384613,0.69,139.52,139.49,7.16897268]
[1764124384808,0.69,139.52,139.5,3.18]
[1764124385008,0.69,139.55,139.5,19.488864]
[1764124385218,4.58194942,139.54,139.5,19.488864]
[1764124385813,0.69,139.53,139.5,19.488864]
[1764124386737,0.69,139.53,139.51,7.16794495]
[1764124388018,4.58194942,139.53,139.51,7.16794495]
[1764124388419,0.69,139.53,139.51,7.16794495]
[1764124392445,4.58194942,139.53,139.51,7.16794495]
[1764124396945,0.69,139.53,139.51,7.16794495]
[1764124397153,4.58194942,139.53,139.51,7.16794495]
[1764124398437,0.69,139.53,139.51,7.16794495]
[1764124399026,0.69,139.53,139.52,3.16]
[1764124400370,0.69,139.53,139.52,10.32743119]
[1764124401062,4.58194942,139.53,139.52,3.16]
[1764124403544,4.58194942,139.53,139.51,7.16757414]
[1764124403745,4.58194942,139.53,139.52,3.16]
[1764124404566,3.17963023,139.53,139.52,3.16]
[1764124411272,3.17963023,139.53,139.52,10.32743119]
[1764124411638,3.17963023,139.53,139.52,3.16]
[1764124414670,0.69,139.53,139.52,3.16]
[1764124418792,0.69,139.53,139.4,50.0]
[1764124418793,10.34669302,139.53,139.4,50.0]
[1764124418982,2.48963023,139.45,139.42,10.33257208]
[1764124419484,0.66,139.44,139.42,26.64143608]
[1764124419684,0.66,139.48,139.43,8.80994492]
[1764124419864,0.66,139.48,139.45,8.80994492]
[1764124420058,0.66,139.48,139.46,3.16]
[1764124420280,3.14963023,139.5,139.47,8.80994492]
[1764124420476,0.66,139.5,139.47,8.80994492]
[1764124420881,0.66,139.5,139.48,7.16948666]
[1764124421079,0.66,139.5,139.49,3.16]
[1764124421460,7.16659969,139.54,139.49,3.16]
[1764124421665,2.48963023,139.53,139.49,3.16]
[1764124421876,3.14963023,139.53,139.49,19.468864]
[1764124422073,0.66,139.52,139.49,19.468864]
[1764124422985,3.14963023,139.53,139.5,7.16845878]
[1764124423175,0.66,139.53,139.5,7.16845878]
[1764124423381,0.66,139.52,139.5,7.16845878]
[1764124423589,3.14963023,139.53,139.5,7.16845878]
[1764124423900,0.66,139.52,139.5,7.16845878]
[1764124424191,3.14963023,139.53,139.5,7.16845878]
[1764124424791,0.66,139.54,139.51,8.80994492]
[1764124425101,2.48963023,139.56,139.52,10.32743119]
[1764124425482,0.66,139.55,139.52,10.32743119]
[1764124425794,3.14963023,139.55,139.52,10.32743119]
[1764124426167,0.66,139.54,139.52,10.32743119]
[1764124428300,2.48963023,139.58,139.53,8.80994492]
[1764124428480,3.14963023,139.57,139.53,8.80994492]
[1764124428898,0.66,139.56,139.53,8.80994492]
[1764124429098,3.14963023,139.56,139.53,8.80994492]
[1764124429494,3.14963023,139.56,139.54,7.16640389]
[1764124429699,2.48963023,139.56,139.52,34.22744198]
[1764124429904,2.48963023,139.56,139.5,2.48963023]
[1764124429905,2.48963023,139.53,139.51,7.16780597]
[1764124430071,2.48963023,139.52,139.51,7.16780597]
[1764124430276,2.48963023,139.52,139.51,10.32780597]
[1764124430476,3.14963023,139.52,139.51,3.16]
[1764124431015,3.14963023,139.53,139.51,3.16]
[1764124432078,0.66,139.52,139.51,3.16]
[1764124432285,0.66,139.52,139.51,10.32794495]
[1764124432901,7.16597107,139.55,139.51,10.32794495]
[1764124433086,3.14963023,139.53,139.51,10.32794495]
[1764124435390,0.66,139.53,139.51,10.32794495]
[1764124435586,0.68,139.52,139.51,10.32794495]
[1764124437406,3.16963023,139.53,139.51,10.32794495]
[1764124439108,0.68,139.53,139.51,10.32794495]
[1764124439892,0.68,139.53,139.49,16.308864]
[1764124440097,2.48963023,139.5,139.48,3.16]
[1764124440311,2.48963023,139.49,139.48,3.16]
[1764124440798,3.16963023,139.49,139.48,3.16]
[1764124442007,0.68,139.49,139.48,3.16]
[1764124442225,3.16963023,139.49,139.48,3.16]
[1764124443512,0.68,139.49,139.48,3.16]
[1764124443710,3.16963023,139.49,139.48,3.16]
[1764124444930,0.7,139.53,139.49,8.80994492]
[1764124445138,3.18963023,139.52,139.49,25.11880892]
[1764124445641,3.18963023,139.52,139.5,7.16845878]
[1764124445943,3.18963023,139.52,139.51,3.18]
[1764124446710,3.18963023,139.52,139.46,17.92568687]
[1764124446909,3.18963023,139.51,139.47,28.29880892]
[1764124447118,3.18963023,139.51,139.47,35.46880963]
[1764124447330,0.7,139.5,139.47,35.46880963]
[1764124447532,0.7,139.53,139.47,53.39381142]
[1764124447738,0.7,139.52,139.47,53.39381142]
[1764124447937,2.48963023,139.51,139.47,53.39381142]
[1764124448131,3.18963023,139.52,139.47,53.39381142]
[1764124448328,0.7,139.51,139.47,53.39381142]
[1764124448525,3.18963023,139.51,139.47,53.39381142]
[1764124448845,3.18963023,139.51,139.47,37.08494742]
[1764124449025,0.7,139.5,139.47,53.39381142]
[1764124449218,0.7,139.5,139.48,3.18]
[1764124450145,0.7,139.5,139.48,10.34903342]
[1764124452757,130.7692824,139.49,139.37,0.1]
[1764124452920,2.48963023,139.39,139.37,0.1]
[1764124453382,2.48963023,139.41,139.37,0.79]
[1764124453664,2.48963023,139.43,139.39,3.91]
[1764124454122,2.48963023,139.42,139.39,3.91]
[1764124454323,2.48963023,139.43,139.39,3.91]
[1764124454833,9.66220231,139.42,139.39,3.91]
[1764124455746,10.26220231,139.42,139.39,3.22]
[1764124458545,8.80994492,139.41,139.38,1e-08]
[1764124458757,8.80994492,139.41,139.28,7.96507699]
[1764124458758,25.11880892,139.36,139.28,7.96507699]
[1764124458960,2.48963023,139.29,139.25,3.22]
[1764124459259,2.48963023,139.28,139.26,16.308864]
[1764124459474,2.48963023,139.28,139.25,3.22]
[1764124459836,2.48963023,139.28,139.25,3.91]
[1764124460335,2.48963023,139.28,139.25,11.09129829]
[1764124460738,2.48963023,139.28,139.25,3.22]
[1764124461661,2.48963023,139.28,139.25,19.528864]
[1764124462662,2.48963023,139.28,139.25,20.218864]
[1764124463439,0.5,139.29,139.25,27.40018751]
[1764124463664,2.48963023,139.28,139.25,27.40018751]
[1764124463975,2.48963023,139.27,139.22,8.80994492]
[1764124464145,2.48963023,139.25,139.23,3.22]
[1764124465050,0.5,139.27,139.23,11.07234088]
[1764124465240,2.48963023,139.25,139.23,11.07234088]
[1764124465763,2.48963023,139.25,139.23,3.89]
[1764124466636,3.905839,139.25,139.23,3.89]
[1764124467565,3.905839,139.25,139.23,11.0723455]
[1764124469244,3.905839,139.26,139.23,11.0723455]
[1764124471068,0.5,139.27,139.24,0.67]
[1764124471069,3.905839,139.27,139.24,0.67]
[1764124471242,3.905839,139.26,139.24,0.67]
[1764124471977,0.5,139.29,139.24,0.67]
[1764124472181,3.905839,139.28,139.24,0.67]
[1764124472385,3.905839,139.29,139.24,0.67]
[1764124472954,3.905839,139.29,139.25,7.18132854]
[1764124473154,3.905839,139.29,139.26,3.22]
[1764124473362,3.905839,139.29,139.26,3.89]
[1764124474885,3.905839,139.29,139.26,11.07063889]
[1764124484572,3.905839,139.29,139.26,10.40063889]
[1764124484779,3.905839,139.29,139.27,7.85000025]
[1764124485688,3.905839,139.29,139.27,7.18000025]
[1764124487078,3.905839,139.29,139.27,7.85000025]
[1764124488416,3.905839,139.31,139.28,0.67]
[1764124488610,3.905839,139.32,139.29,3.22]
[1764124488792,106.905839,139.33,139.3,7.17875089]
[1764124488992,106.905839,139.33,139.3,7.84875089]
[1764124489193,3.905839,139.33,139.3,7.84875089]
[1764124496328,0.5,139.34,139.3,7.84875089]
[1764124496535,3.905839,139.33,139.3,7.84875089]
[1764124500347,103.0,139.38,139.31,0.66]
[1764124500504,3.905839,139.36,139.32,3.2]
[1764124501030,4.405839,139.37,139.34,7.17669011]
[1764124501333,106.905839,139.38,139.35,3.2]
[1764124501851,103.0,139.38,139.36,4.565839]
[1764124502046,0.5,139.41,139.36,4.565839]
[1764124502263,3.905839,139.41,139.37,0.66]
[1764124502426,3.905839,139.41,139.38,3.2]
[1764124502622,4.405839,139.41,139.38,3.2]
[1764124502955,0.5,139.41,139.38,10.37435153]
[1764124503115,7.17266326,139.42,139.38,7.17435153]
[1764124503321,3.905839,139.39,139.37,10.37502905]
[1764124503546,0.5,139.41,139.37,10.37502905]
[1764124503722,3.905839,139.4,139.37,11.03502905]
[1764124504049,4.405839,139.41,139.37,11.03502905]
[1764124506047,3.905839,139.41,139.38,0.66]
[1764124506744,4.405839,139.41,139.38,0.66]
[1764124507431,4.405839,139.41,139.39,7.17411579]
[1764124508028,4.405839,139.41,139.39,10.37411579]
[1764124508547,3.905839,139.41,139.39,10.37411579]
[1764124508952,4.405839,139.41,139.39,10.37411579]
[1764124509842,3.905839,139.41,139.39,10.37411579]
[1764124510558,103.5,139.43,139.39,10.37411579]
[1764124510854,0.5,139.42,139.39,10.37411579]
[1764124511065,3.905839,139.41,139.39,10.37411579]
[1764124513760,4.405839,139.4,139.39,3.2]
[1764124514141,3.905839,139.4,139.39,3.2]
[1764124514554,3.905839,139.4,139.38,7.17449056]
[1764124514859,4.405839,139.4,139.38,10.37449056]
[1764124515354,3.905839,139.4,139.38,3.2]
[1764124515537,4.405839,139.39,139.34,17.94105742]
[1764124515736,3.905839,139.38,139.35,10.37617509]
[1764124516056,3.905839,139.38,139.35,11.03617509]
[1764124516259,4.405839,139.38,139.35,11.03617509]
[1764124516557,3.905839,139.38,139.35,11.03617509]
[1764124516754,4.405839,139.38,139.35,11.03617509]
[1764124517055,3.905839,139.38,139.35,11.03617509]
[1764124517442,3.905839,139.38,139.35,10.37617509]
[1764124517644,3.905839,139.38,139.36,7.83559302]
[1764124518379,3.905839,139.38,139.36,7.17559302]
[1764124518671,3.905839,139.38,139.36,7.83559302]
[1764124519857,3.905839,139.39,139.36,7.83559302]
[1764124520356,4.405839,139.39,139.36,7.83559302]
[1764124520738,3.905839,139.39,139.36,7.83559302]
[1764124523552,3.905839,139.39,139.37,3.2]
[1764124524154,3.905839,139.38,139.37,3.2]
[1764124525142,3.905839,139.38,139.37,3.9]
[1764124528565,2.49505837,139.38,139.37,3.9]
[1764124534660,2.49505837,139.38,139.37,3.2]
[1764124534859,10.16968887,139.38,139.28,35.89826803]
[1764124535164,2.49505837,139.33,139.31,7.17792277]
[1764124535464,2.49505837,139.33,139.32,3.9]
[1764124538271,7.17566016,139.36,139.32,11.07770934]
[1764124538471,7.17566016,139.36,139.33,0.7]
[1764124539370,2.49505837,139.35,139.33,0.7]
[1764124543497,17.93657626,139.38,139.33,7.87717647]
[1764124543654,2.49505837,139.36,139.33,7.87717647]
[1764124543856,2.49505837,139.36,139.34,0.7]
[1764124544172,2.49505837,139.35,139.34,0.7]
[1764124545671,2.49505837,139.36,139.34,0.7]
[1764124547264,2.49505837,139.37,139.34,0.7]
[1764124547471,2.49505837,139.39,139.35,3.2]
[1764124547871,2.49505837,139.39,139.36,0.7]
[1764124548483,2.49505837,139.39,139.36,7.87555015]
[1764124548782,2.49505837,139.39,139.37,0.7]